Cogmind - Beta 17 @@@ ROGUE MODE // 2026.07.19 @ 19:05:02 Player: pinbox Result: Destroyed by XH-LS0(R) with Subdweller Shrapnel Launcher Performance ------------- Evolutions (0) 0 Regions Visited (3) 600 Robots Destroyed (30) 150 Value Destroyed (799) 799 Prototype IDs (0) 0 Alien Tech Used (0) 0 Bonus (7) 7 TOTAL SCORE: 1556 Bonus ------- Follower Combat Kills 7 Cogmind --------- Core Integrity 0/250 Matter 256/300 Energy 100/100 System Corruption 5% Temperature Cool (0) Movement Walking (190) Ox1 Location -10/Subcaves Parts ------- > --- POWER (1) -------- (None) > --- PROPULSION (2) --- Aluminum Leg Aluminum Leg > --- UTILITY (2) ------ Large Storage Unit > --- WEAPON (2) ------- Heavy Assault Rifle > --- INVENTORY (15) --- Light Ion Engine Aluminum Leg Aluminum Leg Aluminum Leg Aluminum Leg Huge Storage Unit Large Matter Pod (150) Machine Analyzer Seismic Detector Heavy Assault Rifle Heavy Assault Rifle Rocket Launcher Flail Peak State ------------ > --- POWER ------------ Light Nuclear Core > --- PROPULSION ------- Aluminum Leg Aluminum Leg > --- UTILITY ---------- Large Storage Unit Medium Armor Plating > --- WEAPON ----------- Heavy Assault Rifle Heavy Assault Rifle > --- INVENTORY -------- Ion Engine Light Ion Engine Aluminum Leg Aluminum Leg Aluminum Leg Huge Storage Unit Seismic Detector Heavy Assault Rifle Heavy Assault Rifle Rocket Launcher Flail [Rating: 13] Favorites ----------- Power Ion Engine Engine Ion Engine Power Core Light Nuclear Core Propulsion Aluminum Leg Treads Light Treads Leg Aluminum Leg Utility Seismic Detector Device Seismic Detector Storage Large Storage Unit Protection Medium Armor Plating Weapon Heavy Assault Rifle Energy Gun Small Laser Ballistic Gun Heavy Assault Rifle Impact Weapon Flail Build | -11 -10 -10 -10 ------- Run | Yrd Mat Min Sub Slots Evolved . | . . . . Power . | . . . . Propulsion . | . . . . Utility . | . . . . Weapon . | . . . . Parts Attached 31 | 7 15 9 . Power 2 | 1 . 1 . Engine 1 | 1 . . . Core 1 | . . 1 . Reactor . | . . . . Propulsion 10 | 2 6 2 . Treads 2 | 2 . . . Leg 8 | . 6 2 . Wheel . | . . . . Hover . | . . . . Flight . | . . . . Utility 7 | 2 3 2 . Device 2 | 1 . 1 . Storage 3 | 1 1 1 . Processor . | . . . . Hackware . | . . . . Protection 2 | . 2 . . Artifact . | . . . . Weapon 12 | 2 6 4 . Energy Gun 7 | 2 4 1 . Energy Cannon . | . . . . Ballistic Gun 4 | . 2 2 . Ballistic Cannon . | . . . . Launcher . | . . . . Special Weapon . | . . . . Impact Weapon 1 | . . 1 . Slashing Weapon . | . . . . Piercing Weapon . | . . . . Special Melee Weapon . | . . . . Unidentified Prototypes . | . . . . Corrupted Parts 1 | . 1 . . System Corruption 2 | . 2 . . Parts Lost 10 | . 6 2 2 Power 2 | . . 1 1 Propulsion 2 | . 2 . . Utility 2 | . 1 1 . Weapon 4 | . 3 . 1 Highest Loss Streak 4 | . 4 2 2 To Critical Strikes . | . . . . Average Backups 7 | . 6 11 12 Power 1 | . 1 1 1 Propulsion 2 | . 1 3 4 Utility 1 | . 1 2 3 Weapon 2 | . 2 4 4 Tool/Special . | . . . . Unused Backups 10 | . 1 1 8 Power 1 | . . . 1 Propulsion 4 | . . 1 3 Utility 3 | . . . 3 Weapon 2 | . 1 . 1 Tool/Special . | . . . . Average Slot Usage (%) 95 | . 97 95 85 Engine 12 | . 14 8 14 Core 1 | . . 5 . Treads 2 | . 4 . . Leg 24 | . 22 28 28 Device 8 | . 10 8 . Storage 14 | . 14 14 14 Protection 1 | . 1 1 . Energy Gun 10 | . 17 . . Ballistic Gun 17 | . 10 27 28 Peak Build Rating 13 | 7 10 13 9 Average Rating 8 | 5 8 10 9 On Entrance 6 | . 7 10 9 Avg Prop Armor Cover (%) . | . . . . Naked Turns . | . . . . Heaviest Build 38 | 15 32 38 31 Greatest Support 40 | 40 40 20 20 Greatest Overweight (x) 3 | . 3 1 1 Average Overweight (x) . | . . 1 1 Largest Inventory Capacity 15 | 8 15 15 15 Average Capacity 11 | 7 9 15 15 Most Carried 14 | 1 9 14 13 Average Carried 8 | . 6 11 12 Final Capacity 15 | 8 15 15 15 Final Carried 13 | 1 9 12 13 Class Distribution -------------------- 74% | Mutant 25% | Scavenger-Mutant Dominant Class ---------------- Mutant | -10/Materials Mutant | -10/Mines Mutant | -10/Subcaves Resources | -11 -10 -10 -10 ----------- Run | Yrd Mat Min Sub Matter Collected 900 | 198 263 439 . Remotely . | . . . . Salvage Created 975 | 14 446 408 107 Parts 83 | 4 37 33 9 Haulers Intercepted . | . . . . Recyclers Shooed . | . . . . Parts Field Recycled . | . . . . Retrieved Matter . | . . . . Parts Self-Destructed 17 | . . . 17 Prevented . | . . . . Parts Restored . | . . . . Kills | -11 -10 -10 -10 ------- Run | Yrd Mat Min Sub Combat Hostiles Destroyed 23 | . 11 10 2 Guns 23 | . 11 10 2 Classes Destroyed 7 | 1 4 . 2 Worker 1 | . 1 . . Tunneler 4 | 1 1 2 . Watcher 2 | . 2 . . Swarmer 5 | . 3 2 . Grunt 16 | . 8 8 . Sentry 1 | . . . 1 Subdweller 1 | . . . 1 Best Kill Streak 9 | 1 3 9 1 Combat Bots Only 8 | . 3 8 1 Max Kills in Single Turn 1 | 1 1 1 1 Gunslinging . | . . . . Exploded . | . . . . Melee . | . . . . Uniques/NPCs Destroyed . | . . . . Combat | -11 -10 -10 -10 -------- Run | Yrd Mat Min Sub Hostile Shots Fired 141 | . 85 46 10 Missed 28 | . 16 10 2 Hits 113 | . 69 36 8 Projectile 113 | . 69 36 8 AOE 3 | . . . 3 Critical Strikes 1 | . 1 . . Damage Taken 1516 | . 848 416 252 Core 258 | . 97 37 124 Absorbed by Shields . | . . . . Core Remaining (%) 100 | 100 . . . Volleys Fired 94 | 4 58 25 7 Largest 2 | 2 2 2 2 Hottest 90 | 90 90 46 46 Shots Fired 178 | 8 107 49 14 Gun 178 | 8 107 49 14 Cannon . | . . . . Launcher . | . . . . Special . | . . . . Kinetic 75 | . 12 49 14 Thermal 84 | 4 80 . . Explosive . | . . . . Electromagnetic 19 | 4 15 . . Robot Hit Streak 7 | 1 7 4 6 Robot Miss Streak 4 | 2 4 3 1 Penetration Max . | . . . . Secondary Targets 5 | . 2 3 . Max Gunslinging Chain 1 | . 1 1 . Shots Hit Robots 102 | 3 62 27 10 Core Hits 47 | 1 26 16 4 Critical Kills . | . . . . Critical Parts Destroyed . | . . . . Critical Strikes 2 | 1 1 . . Burn 1 | 1 . . . Corrupt 1 | . 1 . . Melee Attacks 1 | . . 1 . Impact 1 | . . 1 . Slashing . | . . . . Piercing . | . . . . Sneak Attacks . | . . . . Combat Hostiles . | . . . . Follow-up Attacks . | . . . . Damage Inflicted 1582 | 40 896 499 147 Guns 1452 | 40 766 499 147 Cannons . | . . . . Explosions 126 | . 126 . . Melee . | . . . . Ramming 4 | . 4 . . Kinetic 727 | . 81 499 147 Thermal 714 | 25 689 . . Explosive . | . . . . Electromagnetic 137 | 15 122 . . Impact . | . . . . Slashing . | . . . . Piercing . | . . . . Highest Corruption 5 | . 5 5 5 Average Corruption 3 | . 2 5 5 Corruption Purged . | . . . . Corruption Blocked . | . . . . Effects 41 | . 17 20 4 Message Errors 9 | . 3 4 2 Matter Fused 14 | . 6 6 2 Heat Flow Errors 1 | . . 1 . Energy Discharges 3 | . 1 2 . Parts Rejected 1 | . 1 . . Data Loss (minor) 6 | . 1 5 . Data Loss (major) 2 | . 2 . . Misfires 2 | . 2 . . Alerts 2 | . 1 1 . Weapon Failures 1 | . . 1 . Overload Shots . | . . . . Overflow Damage . | . . . . Projectiles . | . . . . Explosions . | . . . . Melee . | . . . . Knockbacks . | . . . . Impact . | . . . . Kinetic . | . . . . Secondary . | . . . . Self-Inflicted Damage 55 | . 55 . . Shots 1 | . 1 . . Rammed . | . . . . Targets Rammed 1 | . 1 . . Kicked 1 | . 1 . . Crushed . | . . . . Highest Temperature 494 | 60 494 145 . Average Temperature 145 | 30 166 94 . Received Heat Transfer 636 | . 426 201 9 Effects 9 | . 9 . . Shutdowns 4 | . 4 . . Energy Bleed 2 | . 2 . . Matter Decay 1 | . 1 . . Short Circuit 1 | . 1 . . Damage (minor) 1 | . 1 . . Siege Activations . | . . . . Martial Activations . | . . . . Shielding Activations . | . . . . Robots Disrupted . | . . . . Combat Hostiles . | . . . . Robots Corrupted . | . . . . Combat Hostiles . | . . . . Parts Fried . | . . . . Impact Corruptions . | . . . . Robots Melted . | . . . . Combat Hostiles . | . . . . Parts Melted 1 | . 1 . . Heat Transferred 1668 | 148 1520 . . Parts Sabotaged . | . . . . Parts Stolen . | . . . . Parts Stripped . | . . . . Power Chain Reactions 1 | . 1 . . Alert | -11 -10 -10 -10 ------- Run | Yrd Mat Min Sub Maximum Alert Level . | . . . . Low Security (%) 100 | 100 100 100 . Level 1 . | . . . . Level 2 . | . . . . Level 3 . | . . . . Level 4 . | . . . . Level 5 . | . . . . High Security . | . . . . Max Security . | . . . . Peak Influence 157 | 5 86 157 . Initial . | . . . . Average 23 | . 14 40 . Influence Increases 655 | 5 351 279 20 Destroy 0b10 Robot/C 460 | . 220 220 20 Destroy 0b10 Robot/NC 35 | 5 20 10 . Destroy Leader 74 | . 44 30 . Allied During Kill 4 | . . 4 . Successful Hack 16 | . 16 . . Disable Machine 30 | . 15 15 . Destroy Structure 6 | . 6 . . Lose Combat Pursuer 30 | . 30 . . Influence Decreases 655 | 5 351 202 97 Entered New Map 41 | . . . 41 Time Decay 514 | 5 291 162 56 Lost Part 80 | . 60 20 . Lost Ally 20 | . . 20 . Squads Dispatched 2 | . 2 . . Investigation . | . . . . Extermination . | . . . . Reinforcement 2 | . 2 . . Assault . | . . . . Garrison . | . . . . Intercept . | . . . . Searches Triggered . | . . . . Construction Impeded . | . . . . Haulers Reinforced . | . . . . Active Scanning Responses . | . . . . Cargo Convoy Interrupts . | . . . . Stealth | -11 -10 -10 -10 --------- Run | Yrd Mat Min Sub Distress Signals 2 | . 2 . . Communications Jammed . | . . . . Distress Signals . | . . . . Times Spotted 38 | . 20 15 3 Peak Tracking Total 6 | . 6 6 2 Tactical Retreats 2 | . 2 . . Traps | -11 -10 -10 -10 ------- Run | Yrd Mat Min Sub Traps Triggered 2 | . 2 . . Indirectly . | . . . . Trap Hack Attempts . | . . . . Triggered . | . . . . Disarmed . | . . . . Reprogrammed . | . . . . Reused . | . . . . Traps Extracted . | . . . . Installed . | . . . . Triggered . | . . . . Machines | -11 -10 -10 -10 ---------- Run | Yrd Mat Min Sub Machines Disabled 2 | . 1 1 . Max in Single Turn 1 | . 1 1 . Machines Repaired . | . . . . Machines Dismantled . | . . . . Machines Sabotaged . | . . . . Overloaded Fab Kills . | . . . . Hacking | -11 -10 -10 -10 --------- Run | Yrd Mat Min Sub Machines Accessed 7 | . 7 . . Terminals 7 | . 7 . . Fabricators . | . . . . Repair Stations . | . . . . Recycling Units . | . . . . Scanalyzers . | . . . . Garrison Access . | . . . . Total Hacks 25 | . 25 . . Successful 14 | . 14 . . Failed 11 | . 11 . . Catastrophic 1 | . 1 . . Database Lockouts . | . . . . Manual 24 | . 24 . . Terminals 25 | . 25 . . Fabricators . | . . . . Repair Stations . | . . . . Recycling Units . | . . . . Scanalyzers . | . . . . Garrison Access . | . . . . Terminal Hacks 5 | . 5 . . Part Schematic 1 | . 1 . . Robot Analysis 1 | . 1 . . Terminal Index 1 | . 1 . . Zone Layout 2 | . 2 . . Fabricator Hacks . | . . . . Repair Station Hacks . | . . . . Recycling Unit Hacks . | . . . . Scanalyzer . | . . . . Garrison Access Hacks . | . . . . Unauthorized Hacks 9 | . 9 . . Terminals 9 | . 9 . . Botnet 4 | . 4 . . Skim 5 | . 5 . . Fabricators . | . . . . Repair Stations . | . . . . Recycling Units . | . . . . Scanalyzers . | . . . . Garrison Access . | . . . . Data Cores Recovered . | . . . . Used . | . . . . Hacking Detections 7 | . 7 . . Full Trace Events . | . . . . Feedback Events . | . . . . Feedback Blocked . | . . . . Robot Schematics Acquired . | . . . . Robots Built . | . . . . Authchips . | . . . . Time . | . . . . Total Robot Build Rating . | . . . . Part Schematics Acquired 1 | . 1 . . Parts Built . | . . . . Authchips . | . . . . Time . | . . . . Total Part Build Rating . | . . . . Part Studies Acquired . | . . . . Parts Repaired . | . . . . Time . | . . . . Parts Recycled . | . . . . Recycled Matter . | . . . . Retrieved Matter . | . . . . Retrieved Components . | . . . . Parts Scanalyzed . | . . . . Part Schematics Acquired . | . . . . Parts Damaged . | . . . . Bothacking | -11 -10 -10 -10 ------------ Run | Yrd Mat Min Sub Used RIF Installer . | . . . . Robots Hacked . | . . . . Non-combat . | . . . . Combat . | . . . . Robot Hacks Applied . | . . . . Relay Couplers Released . | . . . . Fabnet Peak Effective % . | . . . . Robots Rewired . | . . . . Allies Hacked . | . . . . Hacks Repelled . | . . . . Allies | -11 -10 -10 -10 -------- Run | Yrd Mat Min Sub Total Allies 3 | . . 3 . Largest Group 3 | . . 3 . Highest-Rated Group 40 | . . 40 . Highest-Rated Ally 16 | . . 16 . Total Orders . | . . . . Ally Attacks 17 | . . 17 . Total Damage 193 | . . 193 . Kills 2 | . . 2 . Allies Corrupted . | . . . . Allies Melted . | . . . . Intel | -11 -10 -10 -10 ------- Run | Yrd Mat Min Sub Active Infowar (turns) 1553 | 39 1054 460 . Seismic 1553 | 39 1054 460 . Robot Analysis Total 1 | . 1 . . Derelict Logs Recovered 1 | . . 1 . Drone Launches . | . . . . Drone Recoveries . | . . . . Exploration | -11 -10 -10 -10 ------------- Run | Yrd Mat Min Sub Turns Passed 2511 | 114 1391 791 215 Spaces Moved 1083 | 61 566 359 97 Core 9 | 5 4 . . Treads 133 | 56 77 . . Legs 941 | . 485 359 97 Wheels . | . . . . Hover . | . . . . Flight . | . . . . Fastest Speed 50 | 50 120 190 190 Average Speed 165 | 150 146 190 190 Slowest Speed 200 | 160 200 190 190 Overloaded Moves . | . . . . Propulsion Burnouts . | . . . . Robots Hopped . | . . . . Potential Cave-ins . | . . . . Cave-ins Triggered . | . . . . Exploration Rate (%) 41 | 4 87 65 10 Regions Visited 3 Branch Regions 2 Pre-discovered Areas 1 | . . 1 . Known Exits Taken 1 | . 1 . . Unknown Exits Taken 2 | 1 . 1 . Scrap Searched 2 | . . 2 . Spaces Dug . | . . . . Terrain Destroyed 6 | . 6 . . Melee . | . . . . Projectile . | . . . . AOE 6 | . 6 . . Terrain Rammed . | . . . . Walls Destroyed . | . . . . Machines Disabled . | . . . . Actions | -11 -10 -10 -10 --------- Run | Yrd Mat Min Sub Total 1626 | 72 1023 416 115 Wait 369 | . 357 2 10 Move 1080 | 60 565 358 97 Hop . | . . . . Pick Up 15 | 1 8 5 1 Fast Attach 19 | 7 9 3 . Attach 7 | . 5 2 . Detach 10 | . 6 4 . Swap 16 | . 7 9 . Drop 14 | . 7 7 . Fire 94 | 4 58 25 7 Melee 1 | . . 1 . Ram . | . . . . Kick 1 | . 1 . . Crush . | . . . . Escape Stasis . | . . . . Rewire . | . . . . Trap . | . . . . Miscellaneous . | . . . . Route ------- -11/Scrapyard -10/Materials (discovered 6 exits: *Mat x3 / *Min x2 / [*Sub]) -10/Mines (discovered 2 exits: *Mat / [*Sub]) -10/Subcaves History --------- Turn | Location | Event 4 | -11/Scrapyard | Discovered new exit (range 14) 115 | -11/Scrapyard | Entered Materials 315 | -10/Materials | Build established: Mutant 385 | -10/Materials | Lost 4 parts (1n1u2w) 430 | -10/Materials | Discovered new exit (range 10) 466 | -10/Materials | Discovered new exit (range 12) 626 | -10/Materials | Discovered new exit (range 16) 669 | -10/Materials | Build established: Scavenger-Mutant 698 | -10/Materials | Learned location of 1 exit from Storage 744 | -10/Materials | Learned Storage trap positions 779 | -10/Materials | Learned location of 1 exit from Recycling 805 | -10/Materials | Identified exit to Materials 805 | -10/Materials | Identified exit to Mines 824 | -10/Materials | Learned location of 1 exit from Storage 1308 | -10/Materials | Build established: Mutant 1506 | -10/Materials | Entered Mines 1525 | -10/Mines | Learned location of Zion (-6) 1671 | -10/Mines | Assisted by bots powering up and referring to "LRC-V3" 1942 | -10/Mines | Excavation squad dispatched 1942 | -10/Mines | A large section of the Mines collapsed 2098 | -10/Mines | Core integrity fell below 50% 2122 | -10/Mines | Destroyed 8 combat bots 2238 | -10/Mines | Discovered new exit (range 10) 2248 | -10/Mines | Discovered exit to Materials (range 7) 2297 | -10/Mines | Entered Subcaves 2298 | -10/Subcaves | Approached by a straggling Scientist 2511 | -10/Subcaves | Core integrity fell below 20% 2512 | -10/Subcaves | Destroyed by XH-LS0(R) with Subdweller Shrapnel Launcher Last Messages --------------- 02305_ System corrupted: Matter fused (-6). 02309_ Subatomizers dissect the Wheel. 02310_ Y-45 Defender destroyed. 02317_ Hvy. Assault Rifle fries itself beyond repair. 02321_ Flight Unit fries itself beyond repair. 02321_ Lgt. Assault Rifle fries itself beyond repair. 02322_ Subatomizers dissect the Wheel. 02326_ Beam Rifle fries itself beyond repair. 02327_ Lgt. Treads fries itself beyond repair. 02328_ Acquired Machine Analyzer. 02335_ Subatomizers dissect the Wheel. 02382_ System corrupted: Matter fused (-6). 02453_ |EBNVLTARPP6|D&ZDE5>,TM%ES#B:ZA 02500_ ERVC1BDAM#X5IB4C6:8WBNKL=KH 02503_ T1-T6D(R) destroyed. 02512_ Ion Engine destroyed. 02512_ Hvy. Assault Rifle destroyed. Map ----- +----------------------------------------------------+ | ??????# ????# #??????????????? | | ??????#?????## ##??????????????? | | ?????????????## ### #???????????????? | | ??????????????# #??###???????????????? | | ??????????????## ## #????????????????????? | | ???????????????## ## ###????????????????????? | | ????????????????# ## #??????????????????????? | | ????????????????## ### ##???##????????????????? | | ????????????????? # ?# #### #????????????????? | | ???????????????? ? ?## #????????????????? | | ???????????????? ? ?# #????????????????? | | ??????????????? ## ?# ##????????????????? | | ??????????????#??? # #?????????????????? | | ?????????????????? ?# #?????????????????? | | ??????????????????# ?# ##????????????????? | | ??????????????????# ## #????????????????? | | ?????????????????## # #????????????????? | | ?????????????????# #????????????????? | | ?????????????????# ##???????????????? | | ???????????##????# ## #???????????????? | | ???????????# ### ## ##???????????????? | | ???????????# ;; ##???????????????? | | ???????????# #???????????????? | | ?????????# & #???????????????? | | ???????? #???????????????? | | ???????? ## [ @ #???????????????? | | ??????????????? #?# R #???????????????? | | ????????????????##??# ##??????????????? | | ????????????????????# ##?????????????? | | ????????????????????# #?????????????? | | ???????????????????# " ##"" #?????????????? | | ???????????????????##### ###"" #?????????????? | | ???????????????????????# ?#"" #?????????????? | | ??????????????????????? #?""" #?????????????? | | ??????????????????????? ###"""###?????????????? | | ??????????????????????? ??##""#???????????????? | | ??????????????????????" ???##""???????????????? | | ??????????????????????"" ????#"#???????????????? | | ????????????????????????#??????????????????????? | | ???????????????????????????????????????????????? | | ???????????????????????????????????????????????? | | ???????????????????????????????????????????????? | | ???????????????????????????????????????????????? | | ???????????????????????????????????????????????? | | ???????????????????????????????????????????????? | | ???????????????????????????????????????????????? | | ???????????????????????????????????????????????? | | ???????????????????????????????????????????????? | | ???????????????????????????????????????????????? | | ???????????????????????????????????????????????? | +----------------------------------------------------+ Best States ------------- Heat Dissipation 25 Energy Generation 14 Energy Capacity 250 Matter Stores 300 Matter Capacity 300 Sight Range 16 Terrain Scan Density 10 Armor Coverage 225 Evasion (%) 55 Recoil Reduction 2 Item Schematics ----------------- Huge Storage Unit | -10/Materials | Hacked Robot Schematics ------------------ None Fabricated ------------ Nothing Repaired ---------- Nothing Studied --------- None Alien Tech Used ----------------- None Achievements -------------- None Challenges ------------ None Game ------ Seed ChipSkeletonArticulator Manual? 0 Play Time 00:15:19 Cumulative 76.6 hours Start 2026.07.19 @ 18:06:27 End 2026.07.19 @ 19:05:02 Sessions 3 Manual Loads 0 Difficulty Rogue Special Mode None Game No. 80 Rogue 80 Adventurer 0 Explorer 0 Win Type - Total 2 Types 1/0/0/0/0/0/0/0/0/1 Lore% 55 Gallery% 46 Achievement% 42 Wizard Run 0 Options --------- Layout 1 ASCII 0 Keyboard 1 Movement Numpad Keybinds 1 Fullscreen 2 Font 24/Smallcaps Map View 50x40 Zoom Use 0% Tactical HUD 1 Map Filters NONE Filters NONE Steam 1 RUN: 26343383-20e4-4956-bc94-208dc134cdac